[Event "Chess Festival Groningen 2023 | A"]
[Site "Groningen, Netherlands"]
[Date "2023.12.24"]
[Round "4.12"]
[White "Lambrechts, Koen"]
[Black "Jin, Yueheng"]
[Result "1/2-1/2"]
[TimeControl "90min/40moves + 30min + 30sec/move"]
[WhiteElo "2290"]
[BlackElo "2398"]

1. e4 {[%clk 01:30:50]} {[%emt 00:00:09]} c5 {[%clk 01:30:55]} {[%emt
00:00:05]} 2. Nf3 {[%clk 01:30:52]} {[%emt 00:00:29]} e6 {[%clk 01:31:21]}
{[%emt 00:00:05]} 3. Nc3 {[%clk 01:30:46]} {[%emt 00:00:35]} Nc6 {[%clk
01:31:43]} {[%emt 00:00:09]} 4. Bb5 {[%clk 01:30:33]} {[%emt 00:00:43]} Nd4
{[%clk 01:32:07]} {[%emt 00:00:06]} 5. O-O {[%clk 01:30:35]} {[%emt 00:00:27]}
Ne7 {[%clk 01:32:24]} {[%emt 00:00:13]} 6. Re1 {[%clk 01:24:10]} {[%emt
00:06:54]} Nec6 {[%clk 01:30:54]} {[%emt 00:02:01]} 7. Bf1 {[%clk 01:22:23]}
{[%emt 00:02:17]} Be7 {[%clk 01:29:36]} {[%emt 00:01:48]} 8. d3 {[%clk
01:18:15]} {[%emt 00:04:38]} O-O {[%clk 01:28:13]} {[%emt 00:01:52]} 9. Bf4
{[%clk 01:11:50]} {[%emt 00:06:54]} d6 {[%clk 01:25:30]} {[%emt 00:03:14]} 10.
Bg3 {[%clk 01:06:37]} {[%emt 00:05:43]} Bf6 {[%clk 01:18:05]} {[%emt 00:07:56]}
11. a3 {[%clk 00:54:59]} {[%emt 00:12:08]} a6 {[%clk 01:09:02]} {[%emt
00:09:33]} 12. Nxd4 {[%clk 00:46:41]} {[%emt 00:08:49]} Bxd4 {[%clk 01:08:59]}
{[%emt 00:00:33]} 13. Rb1 {[%clk 00:46:14]} {[%emt 00:00:56]} Bxc3 {[%clk
00:58:40]} {[%emt 00:10:49]} 14. bxc3 {[%clk 00:46:11]} {[%emt 00:00:33]} e5
{[%clk 00:59:07]} {[%emt 00:00:03]} 15. f3 {[%clk 00:33:57]} {[%emt 00:12:44]}
b5 {[%clk 00:58:35]} {[%emt 00:01:02]} 16. Bf2 {[%clk 00:28:34]} {[%emt
00:05:52]} Qa5 {[%clk 00:58:38]} {[%emt 00:00:27]} 17. d4 {[%clk 00:24:34]}
{[%emt 00:04:30]} Qxc3 {[%clk 00:38:03]} {[%emt 00:21:05]} 18. dxc5 {[%clk
00:21:20]} {[%emt 00:03:44]} dxc5 {[%clk 00:38:22]} {[%emt 00:00:11]} 19. Rb3
{[%clk 00:21:44]} {[%emt 00:00:06]} Qa5 {[%clk 00:38:24]} {[%emt 00:00:28]} 20.
Bxc5 {[%clk 00:19:52]} {[%emt 00:02:21]} Rd8 {[%clk 00:38:47]} {[%emt
00:00:07]} 21. Rd3 {[%clk 00:14:08]} {[%emt 00:06:15]} Rxd3 {[%clk 00:39:06]}
{[%emt 00:00:12]} 22. Bxd3 {[%clk 00:14:27]} {[%emt 00:00:10]} Qc3 {[%clk
00:39:02]} {[%emt 00:00:34]} 23. Bf2 {[%clk 00:11:39]} {[%emt 00:03:17]} Qxa3
{[%clk 00:39:20]} {[%emt 00:00:13]} 24. Qa1 {[%clk 00:12:05]} {[%emt 00:00:05]}
Qxa1 {[%clk 00:38:29]} {[%emt 00:01:22]} 25. Rxa1 {[%clk 00:09:11]} {[%emt
00:03:24]} Bb7 {[%clk 00:38:53]} {[%emt 00:00:05]} 26. Kf1 {[%clk 00:09:07]}
{[%emt 00:00:33]} Rd8 {[%clk 00:36:53]} {[%emt 00:02:31]} 27. Ke2 {[%clk
00:09:15]} {[%emt 00:00:22]} f6 {[%clk 00:35:33]} {[%emt 00:01:50]} 28. Bb6
{[%clk 00:08:00]} {[%emt 00:01:44]} Nd4+ {[%clk 00:32:17]} {[%emt 00:03:46]} 29.
Ke3 {[%clk 00:07:16]} {[%emt 00:01:14]} Rd6 {[%clk 00:32:32]} {[%emt 00:00:15]}
30. Bc5 {[%clk 00:07:32]} {[%emt 00:00:14]} Rd7 {[%clk 00:32:54]} {[%emt
00:00:08]} 31. Bb6 {[%clk 00:06:58]} {[%emt 00:01:05]} Kf8 {[%clk 00:29:13]}
{[%emt 00:04:11]} 32. h4 {[%clk 00:07:00]} {[%emt 00:00:28]} Ke8 {[%clk
00:29:18]} {[%emt 00:00:24]} 33. g4 {[%clk 00:06:06]} {[%emt 00:01:24]} Rd6
{[%clk 00:29:36]} {[%emt 00:00:12]} 34. Ba7 {[%clk 00:05:19]} {[%emt 00:01:17]}
Ne6 {[%clk 00:23:18]} {[%emt 00:06:47]} 35. c4 {[%clk 00:03:13]} {[%emt
00:02:36]} Nf4 {[%clk 00:21:56]} {[%emt 00:01:52]} 36. Bf1 {[%clk 00:03:27]}
{[%emt 00:00:15]} bxc4 {[%clk 00:20:52]} {[%emt 00:01:34]} 37. Bxc4 {[%clk
00:03:16]} {[%emt 00:00:41]} Rc6 {[%clk 00:20:11]} {[%emt 00:01:11]} 38. Bf1
{[%clk 00:03:18]} {[%emt 00:00:29]} Rc3+ {[%clk 00:20:04]} {[%emt 00:00:38]} 39.
Kf2 {[%clk 00:03:40]} {[%emt 00:00:07]} Rc2+ {[%clk 00:20:28]} {[%emt
00:00:06]} 40. Kg3 {[%clk 00:03:17]} {[%emt 00:00:53]} Ke7 {[%clk 00:16:56]}
{[%emt 00:04:03]} 41. Bf2 {[%clk 00:01:33]} {[%emt 00:02:14]} Rc3 {[%clk
00:12:46]} {[%emt 00:04:40]} 42. Be1 {[%clk 00:29:35]} {[%emt 00:02:28]} Rb3
{[%clk 00:43:06]} {[%emt 00:00:09]} 43. Bc4 {[%clk 00:27:43]} {[%emt 00:02:22]}
Rb2 {[%clk 00:43:16]} {[%emt 00:00:20]} 44. Bf2 {[%clk 00:26:41]} {[%emt
00:01:32]} h5 {[%clk 00:42:13]} {[%emt 00:01:34]} 45. gxh5 {[%clk 00:16:44]}
{[%emt 00:10:27]} Nxh5+ {[%clk 00:42:37]} {[%emt 00:00:06]} 46. Kg2 {[%clk
00:17:08]} {[%emt 00:00:07]} Nf4+ {[%clk 00:42:57]} {[%emt 00:00:10]} 47. Kg3
{[%clk 00:17:29]} {[%emt 00:00:08]} Ne2+ {[%clk 00:39:31]} {[%emt 00:03:57]} 48.
Kg2 {[%clk 00:16:31]} {[%emt 00:01:26]} Nc3 {[%clk 00:39:39]} {[%emt 00:00:22]}
49. Kg3 {[%clk 00:12:12]} {[%emt 00:04:50]} Nb5 {[%clk 00:38:04]} {[%emt
00:02:06]} 50. h5 {[%clk 00:11:13]} {[%emt 00:01:28]} f5 {[%clk 00:34:30]}
{[%emt 00:04:04]} 51. exf5 {[%clk 00:09:27]} {[%emt 00:02:16]} Kf6 {[%clk
00:34:40]} {[%emt 00:00:20]} 52. Rd1 {[%clk 00:03:04]} {[%emt 00:06:52]} Rb4
{[%clk 00:34:00]} {[%emt 00:01:11]} 53. Bxb5 {[%clk 00:02:28]} {[%emt
00:01:06]} Rxb5 {[%clk 00:34:06]} {[%emt 00:00:24]} 54. Rd6+ {[%clk 00:02:14]}
{[%emt 00:00:44]} Kxf5 {[%clk 00:34:30]} {[%emt 00:00:06]} 55. Rb6 {[%clk
00:02:39]} {[%emt 00:00:05]} Kg5 {[%clk 00:34:08]} {[%emt 00:00:52]} 56. Rg6+
{[%clk 00:01:05]} {[%emt 00:02:05]} Kxh5 {[%clk 00:34:33]} {[%emt 00:00:05]} 57.
Rxg7 {[%clk 00:01:34]} {[%emt 00:00:01]} Rb3 {[%clk 00:34:51]} {[%emt
00:00:12]} 58. Be3 {[%clk 00:01:40]} {[%emt 00:00:24]} Rxe3 {[%clk 00:33:28]}
{[%emt 00:01:53]} 59. Rxb7 {[%clk 00:02:05]} {[%emt 00:00:05]} Kg5 {[%clk
00:33:50]} {[%emt 00:00:08]} 60. Ra7 {[%clk 00:00:56]} {[%emt 00:01:39]} Ra3
{[%clk 00:33:23]} {[%emt 00:00:57]} 61. Kf2 {[%clk 00:00:58]} {[%emt 00:00:29]}
a5 {[%clk 00:33:45]} {[%emt 00:00:09]} 62. Ra8 {[%clk 00:00:48]} {[%emt
00:00:40]} a4 {[%clk 00:34:01]} {[%emt 00:00:14]} 63. Ke2 {[%clk 00:00:50]}
{[%emt 00:00:28]} Kf5 {[%clk 00:34:26]} {[%emt 00:00:05]} 64. Rf8+ {[%clk
00:01:08]} {[%emt 00:00:12]} Kg5 {[%clk 00:34:38]} {[%emt 00:00:18]} 65. Kd2
{[%clk 00:01:15]} {[%emt 00:00:22]} Rb3 {[%clk 00:34:54]} {[%emt 00:00:14]} 66.
Ra8 {[%clk 00:00:45]} {[%emt 00:01:00]} a3 {[%clk 00:35:07]} {[%emt 00:00:17]}
67. Ke2 {[%clk 00:01:11]} {[%emt 00:00:04]} Kf6 {[%clk 00:35:10]} {[%emt
00:00:26]} 68. Ra6+ {[%clk 00:01:31]} {[%emt 00:00:10]} Kf5 {[%clk 00:35:36]}
{[%emt 00:00:04]} 69. Ra8 {[%clk 00:01:46]} {[%emt 00:00:15]} Ke6 {[%clk
00:36:03]} {[%emt 00:00:04]} 70. Ra5 {[%clk 00:01:03]} {[%emt 00:01:13]} Kd6
{[%clk 00:36:26]} {[%emt 00:00:06]} 71. Kf2 {[%clk 00:01:29]} {[%emt 00:00:04]}
Ke6 {[%clk 00:28:56]} {[%emt 00:08:00]} 72. Ke2 {[%clk 00:01:47]} {[%emt
00:00:11]} Rc3 {[%clk 00:27:09]} {[%emt 00:02:17]} 73. Kf2 {[%clk 00:02:03]}
{[%emt 00:00:14]} Rd3 {[%clk 00:27:36]} {[%emt 00:00:03]} 74. Ke2 {[%clk
00:02:30]} {[%emt 00:00:03]} Rc3 {[%clk 00:20:28]} {[%emt 00:07:38]} 75. Kf2
{[%clk 00:02:58]} {[%emt 00:00:02]} Kd6 {[%clk 00:20:55]} {[%emt 00:00:04]} 76.
Ke2 {[%clk 00:03:20]} {[%emt 00:00:07]} Kc6 {[%clk 00:21:19]} {[%emt 00:00:06]}
77. Kd2 {[%clk 00:01:33]} {[%emt 00:02:17]} Rxf3 {[%clk 00:21:35]} {[%emt
00:00:14]} 78. Rxe5 {[%clk 00:01:58]} {[%emt 00:00:05]} a2 {[%clk 00:22:02]}
{[%emt 00:00:03]} 79. Re1 {[%clk 00:02:18]} {[%emt 00:00:09]} Kb5 {[%clk
00:19:41]} {[%emt 00:02:52]} 80. Kc2 {[%clk 00:02:39]} {[%emt 00:00:08]} Kb4
{[%clk 00:19:58]} {[%emt 00:00:14]} 81. Kb2 {[%clk 00:02:51]} {[%emt 00:00:17]}
Rf2+ {[%clk 00:20:18]} {[%emt 00:00:09]} 82. Ka1 {[%clk 00:03:15]} {[%emt
00:00:07]} Kb3 {[%clk 00:20:44]} {[%emt 00:00:04]} 83. Re3+ {[%clk 00:03:21]}
{[%emt 00:00:23]} 1/2-1/2

[Event "Chess Festival Groningen 2023 | A"]
[Site "Groningen, Netherlands"]
[Date "2023.12.24"]
[Round "4.13"]
[White "Aarav, Dengla"]
[Black "Albers, Sasa"]
[Result "1-0"]
[TimeControl "90min/40moves + 30min + 30sec/move"]
[WhiteFideId "45059756"]
[WhiteElo "2382"]
[BlackElo "2192"]

1. e4 {[%clk 01:30:47]} {[%emt 00:00:12]} c6 {[%clk 01:30:57]} {[%emt
00:00:04]} 2. d4 {[%clk 01:30:59]} {[%emt 00:00:16]} d5 {[%clk 01:31:23]}
{[%emt 00:00:05]} 3. e5 {[%clk 01:30:46]} {[%emt 00:00:43]} c5 {[%clk
01:31:50]} {[%emt 00:00:03]} 4. dxc5 {[%clk 01:30:14]} {[%emt 00:01:01]} e6
{[%clk 01:32:16]} {[%emt 00:00:05]} 5. a3 {[%clk 01:29:53]} {[%emt 00:00:51]}
Bxc5 {[%clk 01:32:39]} {[%emt 00:00:06]} 6. Qg4 {[%clk 01:30:07]} {[%emt
00:00:16]} Ne7 {[%clk 01:33:05]} {[%emt 00:00:05]} 7. Nf3 {[%clk 01:29:55]}
{[%emt 00:00:42]} O-O {[%clk 01:32:55]} {[%emt 00:00:40]} 8. Bd3 {[%clk
01:30:03]} {[%emt 00:00:22]} f5 {[%clk 01:24:53]} {[%emt 00:08:32]} 9. exf6
{[%clk 01:29:31]} {[%emt 00:01:01]} Rxf6 {[%clk 01:25:17]} {[%emt 00:00:06]} 10.
Qh5 {[%clk 01:26:25]} {[%emt 00:03:36]} h6 {[%clk 01:25:27]} {[%emt 00:00:21]}
11. O-O {[%clk 01:18:41]} {[%emt 00:08:14]} Bd6 {[%clk 01:19:45]} {[%emt
00:06:12]} 12. Bd2 {[%clk 01:16:15]} {[%emt 00:02:55]} Nbc6 {[%clk 01:17:46]}
{[%emt 00:02:29]} 13. Bc3 {[%clk 01:13:39]} {[%emt 00:03:06]} Rf8 {[%clk
01:12:41]} {[%emt 00:05:35]} 14. b4 {[%clk 01:02:31]} {[%emt 00:11:40]} a6
{[%clk 01:12:38]} {[%emt 00:00:33]} 15. Nbd2 {[%clk 01:01:37]} {[%emt
00:01:23]} Bd7 {[%clk 01:12:32]} {[%emt 00:00:35]} 16. Rfe1 {[%clk 00:53:13]}
{[%emt 00:08:55]} Qe8 {[%clk 00:45:58]} {[%emt 00:27:04]} 17. Qxe8 {[%clk
00:44:13]} {[%emt 00:09:30]} Raxe8 {[%clk 00:46:01]} {[%emt 00:00:26]} 18. Bb2
{[%clk 00:42:55]} {[%emt 00:01:49]} Rf4 {[%clk 00:31:29]} {[%emt 00:15:01]} 19.
c4 {[%clk 00:29:15]} {[%emt 00:14:11]} Ref8 {[%clk 00:31:04]} {[%emt 00:00:55]}
20. b5 {[%clk 00:27:35]} {[%emt 00:02:10]} axb5 {[%clk 00:30:41]} {[%emt
00:00:53]} 21. cxb5 {[%clk 00:27:30]} {[%emt 00:00:35]} Na5 {[%clk 00:29:53]}
{[%emt 00:01:18]} 22. Be5 {[%clk 00:26:10]} {[%emt 00:01:51]} Bxe5 {[%clk
00:29:30]} {[%emt 00:00:52]} 23. Nxe5 {[%clk 00:26:33]} {[%emt 00:00:07]} Be8
{[%clk 00:28:29]} {[%emt 00:01:30]} 24. Rac1 {[%clk 00:25:32]} {[%emt
00:01:32]} Nf5 {[%clk 00:26:50]} {[%emt 00:02:08]} 25. Rc7 {[%clk 00:15:30]}
{[%emt 00:10:33]} Nd6 {[%clk 00:25:43]} {[%emt 00:01:37]} 26. b6 {[%clk
00:15:21]} {[%emt 00:00:39]} Ra4 {[%clk 00:21:46]} {[%emt 00:04:26]} 27. Nb1
{[%clk 00:14:30]} {[%emt 00:01:22]} Rf6 {[%clk 00:18:50]} {[%emt 00:03:26]} 28.
f3 {[%clk 00:13:49]} {[%emt 00:01:11]} h5 {[%clk 00:15:12]} {[%emt 00:04:07]}
29. Rec1 {[%clk 00:11:03]} {[%emt 00:03:16]} Bb5 {[%clk 00:10:31]} {[%emt
00:05:12]} 30. Nc3 {[%clk 00:10:34]} {[%emt 00:00:59]} 1-0

[Event "Chess Festival Groningen 2023 | A"]
[Site "Groningen, Netherlands"]
[Date "2023.12.24"]
[Round "4.14"]
[White "Adamovics, Aleksejs"]
[Black "Nagarkatte, Vedant"]
[Result "1/2-1/2"]
[TimeControl "90min/40moves + 30min + 30sec/move"]
[BlackFideId "25636227"]
[WhiteElo "2015"]
[BlackElo "2320"]

1. c4 {[%clk 01:30:56]} {[%emt 00:00:04]} e5 {[%clk 01:30:56]} {[%emt
00:00:05]} 2. Nc3 {[%clk 01:31:18]} {[%emt 00:00:07]} Nf6 {[%clk 01:31:22]}
{[%emt 00:00:04]} 3. Nf3 {[%clk 01:31:42]} {[%emt 00:00:07]} Nc6 {[%clk
01:31:47]} {[%emt 00:00:06]} 4. e4 {[%clk 01:32:03]} {[%emt 00:00:08]} Bc5
{[%clk 01:26:18]} {[%emt 00:05:59]} 5. Nxe5 {[%clk 01:32:24]} {[%emt 00:00:09]}
Nxe5 {[%clk 01:26:42]} {[%emt 00:00:06]} 6. d4 {[%clk 01:32:50]} {[%emt
00:00:03]} Bb4 {[%clk 01:26:42]} {[%emt 00:00:31]} 7. dxe5 {[%clk 01:33:13]}
{[%emt 00:00:07]} Nxe4 {[%clk 01:27:05]} {[%emt 00:00:07]} 8. Qf3 {[%clk
01:33:27]} {[%emt 00:00:16]} d5 {[%clk 01:21:22]} {[%emt 00:06:13]} 9. Be2
{[%clk 01:22:53]} {[%emt 00:11:03]} Qe7 {[%clk 01:13:38]} {[%emt 00:08:15]} 10.
O-O {[%clk 01:11:11]} {[%emt 00:12:12]} Bxc3 {[%clk 01:11:41]} {[%emt
00:02:28]} 11. bxc3 {[%clk 01:11:33]} {[%emt 00:00:08]} Qxe5 {[%clk 01:11:19]}
{[%emt 00:00:51]} 12. Bf4 {[%clk 00:56:46]} {[%emt 00:15:16]} Qf5 {[%clk
00:29:30]} {[%emt 00:42:19]} 13. cxd5 {[%clk 00:43:38]} {[%emt 00:13:39]} Qxd5
{[%clk 00:27:37]} {[%emt 00:02:23]} 14. Rad1 {[%clk 00:34:43]} {[%emt
00:09:25]} Qc6 {[%clk 00:27:49]} {[%emt 00:00:18]} 15. Bxc7 {[%clk 00:26:51]}
{[%emt 00:08:22]} O-O {[%clk 00:27:35]} {[%emt 00:00:43]} 16. Be5 {[%clk
00:25:56]} {[%emt 00:01:25]} Be6 {[%clk 00:22:34]} {[%emt 00:05:31]} 17. Bd3
{[%clk 00:23:35]} {[%emt 00:02:51]} f5 {[%clk 00:20:43]} {[%emt 00:02:22]} 18.
Bxe4 {[%clk 00:21:06]} {[%emt 00:03:00]} Qxe4 {[%clk 00:19:18]} {[%emt
00:01:55]} 19. Qg3 {[%clk 00:19:36]} {[%emt 00:01:59]} Qg4 {[%clk 00:19:16]}
{[%emt 00:00:33]} 20. a3 {[%clk 00:19:26]} {[%emt 00:00:40]} Qxg3 {[%clk
00:19:01]} {[%emt 00:00:45]} 21. fxg3 {[%clk 00:19:04]} {[%emt 00:00:52]} Rad8
{[%clk 00:18:57]} {[%emt 00:00:34]} 22. Rd4 {[%clk 00:18:32]} {[%emt 00:01:02]}
Rxd4 {[%clk 00:18:54]} {[%emt 00:00:33]} 23. Bxd4 {[%clk 00:17:11]} {[%emt
00:01:50]} a6 {[%clk 00:18:53]} {[%emt 00:00:32]} 24. Re1 {[%clk 00:16:21]}
{[%emt 00:01:19]} Re8 {[%clk 00:18:38]} {[%emt 00:00:45]} 25. h3 {[%clk
00:15:34]} {[%emt 00:01:16]} Bd7 {[%clk 00:18:43]} {[%emt 00:00:26]} 26. Rxe8+
{[%clk 00:12:48]} {[%emt 00:03:16]} Bxe8 {[%clk 00:19:08]} {[%emt 00:00:05]} 27.
g4 {[%clk 00:11:02]} {[%emt 00:02:15]} fxg4 {[%clk 00:19:28]} {[%emt 00:00:10]}
28. hxg4 {[%clk 00:11:31]} {[%emt 00:00:01]} Bd7 {[%clk 00:19:23]} {[%emt
00:00:35]} 29. g5 {[%clk 00:11:53]} {[%emt 00:00:07]} Kf7 {[%clk 00:19:46]}
{[%emt 00:00:08]} 30. Kf2 {[%clk 00:12:10]} {[%emt 00:00:13]} Ke6 {[%clk
00:19:57]} {[%emt 00:00:18]} 31. Bxg7 {[%clk 00:12:13]} {[%emt 00:00:28]} Kd5
{[%clk 00:20:23]} {[%emt 00:00:04]} 32. Ke3 {[%clk 00:12:21]} {[%emt 00:00:22]}
Kc4 {[%clk 00:20:49]} {[%emt 00:00:04]} 33. Kd2 {[%clk 00:12:34]} {[%emt
00:00:16]} Bf5 {[%clk 00:21:12]} {[%emt 00:00:06]} 34. g3 {[%clk 00:12:13]}
{[%emt 00:00:52]} Bg6 {[%clk 00:20:59]} {[%emt 00:00:43]} 35. Bf6 {[%clk
00:12:30]} {[%emt 00:00:14]} Kb3 {[%clk 00:21:24]} {[%emt 00:00:05]} 36. Be7
{[%clk 00:12:50]} {[%emt 00:00:10]} Kc4 {[%clk 00:21:49]} {[%emt 00:00:04]} 37.
Bf6 {[%clk 00:13:14]} {[%emt 00:00:06]} Kb3 {[%clk 00:22:12]} {[%emt 00:00:05]}
1/2-1/2

[Event "Chess Festival Groningen 2023 | A"]
[Site "Groningen, Netherlands"]
[Date "2023.12.24"]
[Round "4.15"]
[White "Sanket, Chakravarty"]
[Black "Ter-Avetisjana, Agnesa Stepania"]
[Result "1-0"]
[TimeControl "90min/40moves + 30min + 30sec/move"]
[WhiteFideId "25032038"]
[BlackFideId "11614900"]
[WhiteElo "2361"]
[BlackElo "1974"]

1. c4 {[%clk 01:30:33]} {[%emt 00:00:26]} c6 {[%clk 01:30:55]} {[%emt
00:00:06]} 2. Nf3 {[%clk 01:30:49]} {[%emt 00:00:13]} d5 {[%clk 01:31:20]}
{[%emt 00:00:06]} 3. e3 {[%clk 01:31:09]} {[%emt 00:00:09]} Nf6 {[%clk
01:31:45]} {[%emt 00:00:06]} 4. Nc3 {[%clk 01:31:32]} {[%emt 00:00:06]} e6
{[%clk 01:31:29]} {[%emt 00:00:46]} 5. b3 {[%clk 01:31:16]} {[%emt 00:00:45]}
Bd6 {[%clk 01:31:18]} {[%emt 00:00:42]} 6. Bb2 {[%clk 01:31:20]} {[%emt
00:00:26]} O-O {[%clk 01:31:39]} {[%emt 00:00:09]} 7. d4 {[%clk 01:31:09]}
{[%emt 00:00:41]} Nbd7 {[%clk 01:30:43]} {[%emt 00:01:27]} 8. Be2 {[%clk
01:31:02]} {[%emt 00:00:34]} e5 {[%clk 01:30:11]} {[%emt 00:01:04]} 9. dxe5
{[%clk 01:30:53]} {[%emt 00:00:39]} Nxe5 {[%clk 01:30:32]} {[%emt 00:00:10]} 10.
cxd5 {[%clk 01:30:40]} {[%emt 00:00:42]} cxd5 {[%clk 01:29:23]} {[%emt
00:01:40]} 11. O-O {[%clk 01:20:41]} {[%emt 00:10:28]} Be6 {[%clk 01:27:40]}
{[%emt 00:02:14]} 12. Nb5 {[%clk 01:14:03]} {[%emt 00:07:07]} Nxf3+ {[%clk
01:25:14]} {[%emt 00:02:57]} 13. Bxf3 {[%clk 01:09:46]} {[%emt 00:04:47]} Be7
{[%clk 01:24:06]} {[%emt 00:01:38]} 14. Rc1 {[%clk 01:06:33]} {[%emt 00:03:42]}
Qa5 {[%clk 01:22:22]} {[%emt 00:02:16]} 15. Nc7 {[%clk 01:03:16]} {[%emt
00:03:46]} Rac8 {[%clk 01:22:02]} {[%emt 00:00:50]} 16. Nxe6 {[%clk 01:03:23]}
{[%emt 00:00:22]} fxe6 {[%clk 01:22:19]} {[%emt 00:00:13]} 17. Bg4 {[%clk
01:03:06]} {[%emt 00:00:48]} Kf7 {[%clk 01:18:20]} {[%emt 00:04:30]} 18. Rxc8
{[%clk 00:42:35]} {[%emt 00:21:00]} Rxc8 {[%clk 01:18:39]} {[%emt 00:00:11]} 19.
Bxf6 {[%clk 00:42:53]} {[%emt 00:00:12]} gxf6 {[%clk 01:18:24]} {[%emt
00:00:45]} 20. Qd3 {[%clk 00:43:11]} {[%emt 00:00:11]} f5 {[%clk 01:16:41]}
{[%emt 00:02:14]} 21. Bxf5 {[%clk 00:29:58]} {[%emt 00:13:43]} Rc3 {[%clk
01:15:28]} 22. Bxe6+ {[%clk 00:30:15]} {[%emt 00:01:55]} Kxe6 {[%emt 00:00:13]}
23. Qxh7 {[%clk 00:30:24]} {[%emt 00:00:16]} Qc5 {[%clk 01:13:25]} {[%emt
00:02:55]} 24. g3 {[%clk 00:28:56]} {[%emt 00:01:57]} Rc1 {[%clk 01:09:14]}
{[%emt 00:04:41]} 25. Rxc1 {[%clk 00:28:44]} {[%emt 00:00:43]} Qxc1+ {[%clk
01:05:46]} {[%emt 00:03:58]} 26. Kg2 {[%clk 00:29:08]} {[%emt 00:00:05]} Qc6
{[%clk 01:05:36]} {[%emt 00:00:40]} 27. Qg8+ {[%clk 00:22:17]} {[%emt
00:07:22]} Kd7 {[%clk 01:00:47]} {[%emt 00:05:19]} 28. Qg4+ {[%clk 00:22:33]}
{[%emt 00:00:15]} Kc7 {[%clk 01:01:11]} {[%emt 00:00:06]} 29. Qf3 {[%clk
00:22:51]} {[%emt 00:00:11]} Kb6 {[%clk 01:01:28]} {[%emt 00:00:14]} 30. h4
{[%clk 00:23:01]} {[%emt 00:00:19]} Ka5 {[%clk 01:01:21]} {[%emt 00:00:37]} 31.
Kh3 {[%clk 00:09:23]} {[%emt 00:14:09]} b5 {[%clk 00:49:54]} {[%emt 00:11:58]}
32. Qf7 {[%clk 00:07:53]} {[%emt 00:02:00]} Bc5 {[%clk 00:48:05]} {[%emt
00:02:19]} 33. h5 {[%clk 00:07:51]} {[%emt 00:00:31]} d4 {[%clk 00:46:23]}
{[%emt 00:02:12]} 34. exd4 {[%clk 00:08:09]} {[%emt 00:00:12]} Qh1+ {[%clk
00:46:13]} {[%emt 00:00:40]} 35. Kg4 {[%clk 00:08:35]} {[%emt 00:00:04]} Bxd4
{[%clk 00:45:11]} {[%emt 00:01:32]} 36. f4 {[%clk 00:08:46]} {[%emt 00:00:18]}
Qh2 {[%clk 00:42:48]} {[%emt 00:02:53]} 37. Qc7+ {[%clk 00:08:01]} {[%emt
00:01:15]} Kb4 {[%clk 00:41:32]} {[%emt 00:01:47]} 38. Qd6+ {[%clk 00:08:22]}
{[%emt 00:00:08]} Kc3 {[%clk 00:41:55]} {[%emt 00:00:07]} 39. Qc6+ {[%clk
00:08:34]} {[%emt 00:00:17]} Kb4 {[%clk 00:41:27]} {[%emt 00:00:59]} 40. Qd6+
{[%clk 00:07:42]} {[%emt 00:01:22]} Kc3 {[%clk 00:41:49]} {[%emt 00:00:08]} 41.
Qc6+ {[%clk 00:02:01]} {[%emt 00:06:10]} Kb4 {[%clk 00:42:08]} {[%emt
00:00:11]} 42. a3+ {[%clk 00:01:41]} {[%emt 00:00:50]} Kxb3 {[%clk 00:41:32]}
{[%emt 00:01:06]} 43. Qxb5+ {[%clk 00:02:06]} {[%emt 00:00:06]} Kc3 {[%clk
00:41:54]} {[%emt 00:00:07]} 44. Qc6+ {[%clk 00:02:06]} {[%emt 00:00:29]} Kd3
{[%clk 00:42:05]} {[%emt 00:00:20]} 45. h6 {[%clk 00:02:12]} {[%emt 00:00:23]}
Kd2 {[%clk 00:42:00]} {[%emt 00:00:36]} 46. Qd7 {[%clk 00:30:29]} {[%emt
00:02:14]} Kc3 {[%clk 01:11:20]} {[%emt 00:01:09]} 47. h7 {[%clk 00:30:11]}
{[%emt 00:00:48]} Qb2 {[%clk 01:11:43]} {[%emt 00:00:08]} 48. Qxd4+ {[%clk
00:30:35]} {[%emt 00:00:06]} 1-0